[Event "GCT Superbet Blitz Poland 2025"]
[Site "Warsaw"]
[Date "2025.04.29"]
[Round "5"]
[White "Duda, Jan-Krzysztof"]
[Black "Topalov, Veselin"]
[Result "0-1"]
[ECO "A43"]
[WhiteElo "2739"]
[BlackElo "2717"]
[Annotator "RC"]
[PlyCount "136"]
[EventDate "2025.??.??"]
[EventType "blitz"]
[TimeControl "300+2"]

1. d4 {[%emt 0:00:01]} Nf6 {[%emt 0:00:02]} 2. Nf3 {[%emt 0:00:02]} c5 {[%emt 0:00:00]} 3. d5 {[%emt 0:00:05]} b5 {[%emt 0:00:01]} 4. Bg5 {[%emt 0:00:03]} g6 {[%emt 0:00:01]} 5. Bxf6 {[%emt 0:00:07]} exf6 {[%emt 0:00:01]} 6. e3 {[%emt 0:00:05]} b4 {[%emt 0:00:06]} 7. Nbd2 {[%emt 0:00:11]} ({RR} 7. a3 Bg7 8. axb4 cxb4 9. Nbd2 O-O 10. Be2 f5 11. Nc4 Ba6 12. Nd4 Bxc4 13. Bxc4 Qb6 14. O-O a5 15. Qd3 d6 16. b3 Nd7 17. Ra2 Nc5 18. Qd1 Ne4 19. Qd3 Nc3 20. Raa1 Bxd4 21. exd4 Rfe8 {Kucuksari,K (2455)-Makarian,R (2537) chess.com INT 2024 0-1 (35)}) 7... Bg7 {[%emt 0:00:03]} 8. Nc4 {[%emt 0:00:03]} ({RR} 8. d6 f5 9. Nc4 Bb7 10. Be2 O-O 11. O-O Nc6 12. a3 Re8 13. Nfd2 f4 14. Bf3 Qh4 15. Bd5 b3 16. Nxb3 Ba6 17. Nxc5 Bxc4 18. Bxc4 fxe3 19. Bxf7+ Kh8 20. Bxe8 exf2+ 21. Rxf2 Bd4 22. Nd3 Rxe8 {Duda,J (2732)-Shevchenko,K (2694) Krakow POL 2023 1-0}) 8... d6 $146 {[%emt 0:00:01]} ({RR} 8... O-O 9. a3 f5 10. g3 d6 11. Bg2 Nd7 12. axb4 Nb6 13. Nfd2 cxb4 14. O-O Nxc4 15. Nxc4 a5 16. Re1 Qc7 17. Bf1 Ba6 18. b3 Bxa1 19. Qxa1 a4 20. Qd4 Bxc4 21. Bxc4 a3 22. c3 bxc3 23. Qxc3 {Llopis de Aysa,M (2023)-Alsina Leal,D (2521) Barcelona 2022 0-1 (42)}) ({RR} 8... O-O 9. a3 f5 10. g3 d6 11. Bg2 Nd7 12. axb4 Nb6 13. Nfd2 cxb4 14. O-O Nxc4 15. Nxc4 a5 16. Re1 Qc7 17. Bf1 Ba6 18. b3 Bxa1 19. Qxa1 a4 20. Qd4 Bxc4 21. Bxc4 a3 22. c3 bxc3 23. Qxc3 {Llopis de Aysa,M (2023)-Alsina Leal,D (2521) Barcelona 2022 0-1 (42)}) 9. Be2 {[%emt 0:00:04]} O-O {[%emt 0:00:03]} 10. O-O {[%emt 0:00:02]} f5 {[%emt 0:00:02]} 11. a3 {[%emt 0:00:02]} Nd7 {[%emt 0:00:37]} 12. axb4 {[%emt 0:00:05]} cxb4 {[%emt 0:00:01]} 13. Nd4 {[%emt 0:00:04]} Nb6 {[%emt 0:00:27]} 14. Na5 {[%emt 0:00:26]} Qc7 {[%emt 0:00:19]} 15. Qd2 {[%emt 0:00:31]} Bd7 {[%emt 0:00:45]} 16. Qxb4 {[%emt 0:00:17]} Nxd5 {[%emt 0:00:02]} 17. Qd2 {[%emt 0:00:03]} Nb6 {[%emt 0:00:02]} 18. Ra3 {[%emt 0:00:05]} d5 {[%emt 0:00:02]} 19. Rfa1 {[%emt 0:00:04]} h5 {[%emt 0:00:14]} 20. Rc3 {[%emt 0:00:09]} Qd6 {[%emt 0:00:15]} 21. Rb3 {[%emt 0:00:42]} Rfc8 {[%emt 0:00:19]} 22. c3 {[%emt 0:00:29]} Qe7 {[%emt 0:00:21]} 23. Rba3 {[%emt 0:00:13]} h4 {[%emt 0:00:02]} 24. h3 {[%emt 0:00:09]} Bf6 {[%emt 0:00:06]} 25. b4 {[%emt 0:00:03]} Be5 {[%emt 0:00:35]} 26. Nab3 {[%emt 0:00:06]} Bd6 {[%emt 0:00:01]} 27. Rxa7 {[%emt 0:00:13]} Rxa7 {[%emt 0:00:04]} 28. Rxa7 {[%emt 0:00:02]} Qe5 {[%emt 0:00:08]} 29. f4 {[%emt 0:00:02]} Qe8 {[%emt 0:00:12]} 30. Rb7 {[%emt 0:00:23]} Na4 {[%emt 0:00:11]} 31. Bb5 {[%emt 0:00:05]} Bxb5 {[%emt 0:00:03]} 32. Nxb5 {[%emt 0:00:02]} Bf8 {[%emt 0:00:09]} 33. N3d4 {[%emt 0:00:14]} Qe4 {[%emt 0:00:22]} 34. Kh2 {[%emt 0:00:43]} Re8 {[%emt 0:00:00]} 35. Rd7 {[%emt 0:00:11]} Qxe3 {[%emt 0:00:03]} 36. Qxe3 {[%emt 0:00:02]} Rxe3 {[%emt 0:00:00]} 37. Rxd5 {[%emt 0:00:02]} Nxc3 {[%emt 0:00:01]} 38. Nxc3 {[%emt 0:00:02]} Rxc3 {[%emt 0:00:01]} 39. b5 {[%emt 0:00:02]} Bh6 {[%emt 0:00:07]} 40. Ne2 {[%emt 0:00:04]} Rc2 {[%emt 0:00:01]} 41. Re5 {[%emt 0:00:01]} Rb2 {[%emt 0:00:01]} 42. Kg1 {[%emt 0:00:02]} Bg7 {[%emt 0:00:02]} 43. Re8+ {[%emt 0:00:01]} Kh7 {[%emt 0:00:01]} 44. Re7 {[%emt 0:00:03]} Kg8 {[%emt 0:00:03]} 45. Re8+ {[%emt 0:00:02]} Kh7 {[%emt 0:00:01]} 46. Re7 {[%emt 0:00:02]} Bf8 {[%emt 0:00:03]} 47. Re5 {[%emt 0:00:04]} Bd6 {[%emt 0:00:02]} 48. Rd5 {[%emt 0:00:02]} Bc7 {[%emt 0:00:01]} 49. Kf1 {[%emt 0:00:01]} Kg7 {[%emt 0:00:01]} 50. Ke1 {[%emt 0:00:02]} Ba5+ {[%emt 0:00:01]} 51. Kd1 {[%emt 0:00:03]} Bb6 {[%emt 0:00:01]} 52. Ke1 {[%emt 0:00:01]} Be3 {[%emt 0:00:02]} 53. Kd1 {[%emt 0:00:02]} Kg8 {[%emt 0:00:01]} 54. Rd3 {[%emt 0:00:02]} Bf2 {[%emt 0:00:02]} 55. Nc3 {[%emt 0:00:03]} Bb6 {[%emt 0:00:02]} 56. Rd2 {[%emt 0:00:01]} Rb4 {[%emt 0:00:01]} 57. Kc2 {[%emt 0:00:02]} Ba5 {[%emt 0:00:04]} 58. Kd3 {[%emt 0:00:03]} Rxf4 {[%emt 0:00:02]} 59. Ra2 {[%emt 0:00:02]} Bb6 {[%emt 0:00:03]} 60. Ra6 {[%emt 0:00:01]} Bg1 {[%emt 0:00:01]} 61. b6 {[%emt 0:00:03]} Rb4 {[%emt 0:00:02]} 62. Nd5 {[%emt 0:00:01]} Rd4+ {[%emt 0:00:01]} 63. Kc3 {[%emt 0:00:02]} Rxd5 {[%emt 0:00:01]} 64. b7 {[%emt 0:00:01]} Bh2 {[%emt 0:00:00]} 65. Ra8+ {[%emt 0:00:01]} Kg7 {[%emt 0:00:01]} 66. b8=Q {[%emt 0:00:03]} Bxb8 {[%emt 0:00:02]} 67. Rxb8 {[%emt 0:00:00]} g5 {[%emt 0:00:01]} 68. Rb6 {[%emt 0:00:02]} f4 {[%emt 0:00:02]} 0-1

[Event "GCT Superbet Blitz Poland 2025"]
[Site "Warsaw"]
[Date "2025.04.29"]
[Round "5"]
[White "Fedoseev, Vladimir"]
[Black "Praggnanandhaa R"]
[Result "1/2-1/2"]
[ECO "E11"]
[WhiteElo "2739"]
[BlackElo "2758"]
[Annotator "TA"]
[PlyCount "264"]
[EventDate "2025.??.??"]
[EventType "blitz"]
[TimeControl "300+2"]

{[%evp 59,264,-205,-209,-236,-228,-236,-180,-226,-190,-193,-188,-193,-164,-177,-148,-148,0,0,0,-143,-143,-183,-176,-200,-186,-179,-181,-289,-292,-285,-278,-284,-281,-229,-171,-174,-116,-159,-184,-174,-176,-164,-172,-204,-204,-208,-212,-182,-170,-188,-160,-149,0,0,0,0,0,0,0,0,0,0,0,0,47,0,57,48,195,168,313,303,251,247,261,0,298,-2173,-1104,-2185,-1531,-1889,-1188,-1348,-1070,-5106,-372,-361,-320,-586,-580,-509,-439,-480,-479,-484,-484,-480,-479,-477,-477,-475,-417,-403,0,0,0,0,20,0,0,0,0,0,0,0,0,0,0,0,0,0,0,0,0,0,0,0,0,0,0,0,0,0,0,0,0,0,0,0,0,0,0,0,0,0,0,0,0,0,0,0,0,0,0,0,0,0,0,0,0,0,0,0,0,0,0,0,0,0,0,0,0,0,0,0,0,0,0,0,0,0,0,0,0,0,0,0,0,0,0,0,0,0,0,0,0,0,0,0,0,0,0,0,0,0,0]} 1. d4 {[%emt 0:00:01]} Nf6 {[%emt 0:00:01]} 2. c4 {[%emt 0:00:01]} e6 {[%emt 0:00:01]} 3. Nf3 {[%emt 0:00:02]} Bb4+ {[%emt 0:00:02]} 4. Nbd2 {[%emt 0:00:10]} O-O {[%emt 0:00:02]} 5. g3 {[%emt 0:00:09]} d6 {[%emt 0:00:04]} 6. Bg2 {[%emt 0:00:02]} Qe7 {[%emt 0:00:12]} 7. O-O {[%emt 0:00:08]} Bxd2 {[%emt 0:00:02]} 8. Bxd2 {[%emt 0:00:35]} ({RR} 8. Qxd2 e5 9. d5 Nbd7 10. Ne1 a5 11. e4 Nc5 12. f3 c6 13. Nd3 Nxd3 14. Qxd3 cxd5 15. exd5 Nd7 16. Be3 f5 17. b3 f4 18. gxf4 exf4 19. Bd4 Ne5 20. Qc3 Ng6 21. Rae1 Qg5 22. Kh1 Bf5 {Barria Zuniga,D (2341)-Masruri,R (2327) chess.com INT 2025 0-1 (32)}) 8... e5 {[%emt 0:00:02]} 9. Bg5 $146 {[%emt 0:01:08]} ({RR} 9. dxe5 dxe5 10. Bc3 Nc6 11. Qc2 Qc5 12. b3 a5 13. Rad1 Re8 14. Ng5 Nb4 15. Qb1 h6 16. Ne4 Nxe4 17. Bxe4 a4 18. Rd2 axb3 19. axb3 Rb8 20. Rfd1 b5 21. Bxb4 Qxb4 22. Bc6 Rf8 23. cxb5 Be6 {Vajda,A-Steiner,L Kecskemet 1927 ½-½ (61)}) ({RR} 9. Rc1 Re8 10. Qa4 Nbd7 11. Qa3 Ne4 12. Be3 exd4 13. Bxd4 Ndf6 14. b3 Bd7 15. Rfd1 a6 16. Qb2 Rad8 17. Rd3 c5 18. Bxf6 Nxf6 19. Rcd1 Bf5 20. Re3 Qc7 21. Rxe8+ Rxe8 22. Nh4 Be6 23. Qd2 Rd8 {Gupta,A (2603)-Demidov,M (2552) Chess.com INT 2020 ½-½ (91)}) ({RR} 9. dxe5 dxe5 10. Bc3 Nc6 11. Qc2 a5 12. b3 Nd7 13. a3 f6 14. Nh4 g6 15. Bd5+ Kg7 16. Qd2 Nc5 17. Rab1 Be6 18. Qe3 Bxd5 19. cxd5 Nd8 20. Rfc1 Nd7 21. Bd2 Qd6 22. Qh6+ Kg8 23. Nxg6 hxg6 {Shefer,U (1806)-Bozanis,D (2008) Thessaloniki GRE 2023 1-0}) ({RR} 9. Qc2 Re8 10. e4 Bg4 11. d5 Bxf3 12. Bxf3 a5 13. b3 Nbd7 14. a3 Nf8 15. b4 axb4 16. axb4 Ng6 17. c5 b6 18. Be3 bxc5 19. bxc5 Reb8 20. Rfb1 Qd8 21. c6 Rxb1+ 22. Qxb1 Rxa1 23. Qxa1 Ne8 {Stefansson,V (2464)-Martinez Alcantara,J (2610) chess.com INT 2024 0-1 (38)}) 9... h6 {[%emt 0:00:28]} 10. Bxf6 {[%emt 0:00:02]} Qxf6 {[%emt 0:00:01]} 11. dxe5 {[%emt 0:00:15]} dxe5 {[%emt 0:00:02]} 12. Nd2 {[%emt 0:00:01]} Qe7 {[%emt 0:00:07]} 13. Ne4 {[%emt 0:00:05]} Na6 {[%emt 0:00:42]} 14. Qd5 {[%emt 0:00:08]} Rd8 {[%emt 0:00:14]} 15. Qa5 {[%emt 0:00:02]} c6 {[%emt 0:00:30]} 16. Rad1 {[%emt 0:00:06]} Bg4 {[%emt 0:00:15]} 17. Nc3 {[%emt 0:00:10]} Qc7 {[%emt 0:00:39]} 18. Qxc7 {[%emt 0:00:22]} Nxc7 {[%emt 0:00:01]} 19. b3 {[%emt 0:00:09]} Kf8 {[%emt 0:00:15]} 20. h3 {[%emt 0:00:12]} Bf5 {[%emt 0:00:02]} 21. g4 {[%emt 0:00:01]} Bc2 {[%emt 0:00:05]} 22. Rxd8+ {[%emt 0:00:24]} Rxd8 {[%emt 0:00:02]} 23. Rc1 {[%emt 0:00:01]} Rd2 {[%emt 0:00:39]} 24. Kf1 {[%emt 0:00:01]} Bg6 {[%emt 0:00:02]} 25. Ke1 {[%emt 0:00:01]} Rb2 {[%emt 0:00:02]} 26. Ra1 {[%emt 0:00:35]} Ne6 {[%emt 0:00:18]} 27. e3 {[%emt 0:00:49]} Nc5 {[%emt 0:00:09]} 28. Bf1 {[%emt 0:00:01]} a5 {[%emt 0:00:23]} 29. Na4 {[%emt 0:00:08]} Nxa4 {[%emt 0:00:04]} 30. bxa4 {[%emt 0:00:01]} Ke7 {[%emt 0:00:15]} 31. Be2 {[%emt 0:00:01]} Bb1 {[%emt 0:00:02]} 32. a3 {[%emt 0:00:07]} Bc2 {[%emt 0:00:04]} 33. Bd1 {[%emt 0:00:01]} (33. c5 $142) 33... Bd3 {[%emt 0:00:01]} 34. Rc1 {[%emt 0:00:01]} e4 {[%emt 0:00:05]} 35. c5 {[%emt 0:00:02]} Kf6 {[%emt 0:00:03]} 36. h4 {[%emt 0:00:03]} Ke5 {[%emt 0:00:03]} 37. Rc3 {[%emt 0:00:01]} Kd5 {[%emt 0:00:08]} (37... Ba6 $17 38. Rc2 Rb1) 38. Bb3+ $1 $11 {[%emt 0:00:02]} Ke5 {[%emt 0:00:01]} 39. f4+ {[%emt 0:00:02]} (39. Bd1 $1 $11 {was the only way to keep the balance.}) 39... Kf6 $17 {[%emt 0:00:02]} 40. g5+ {[%emt 0:00:01]} Ke7 {[%emt 0:00:01]} 41. Bd1 {[%emt 0:00:07]} Rh2 {[%emt 0:00:08]} 42. gxh6 {[%emt 0:00:01]} gxh6 {[%emt 0:00:01]} 43. h5 {[%emt 0:00:01]} (43. Rb3 Ba6 (43... Rxh4 44. Rxb7+ Kf8 45. Bb3 $16) 44. Bg4) 43... Kd7 {[%emt 0:00:03]} 44. Bg4+ {[%emt 0:00:05]} Kc7 {[%emt 0:00:01]} 45. Bd1 {[%emt 0:00:02]} Rg2 {[%emt 0:00:04]} 46. Rb3 {[%emt 0:00:03]} Rg1+ {[%emt 0:00:03]} 47. Kd2 Rh1 (47... Bc4 $19 48. Rb1 Rh1) 48. Rb2 {[%emt 0:00:03]} Rh3 {[%emt 0:00:02]} 49. Rb6 {[%emt 0:00:03]} Rh2+ {[%emt 0:00:03]} 50. Kc3 {[%emt 0:00:01]} Rh1 $1 {[%emt 0:00:02]} 51. Bb3 {[%emt 0:00:01]} Rxh5 {[%emt 0:00:01]} 52. Kd4 {[%emt 0:00:01]} f6 $1 {[%emt 0:00:03]} (52... Rf5 53. Ba2 $15) 53. Be6 {[%emt 0:00:02]} Rh1 {[%emt 0:00:02]} 54. Rb2 {[%emt 0:00:01]} Rd1 $1 {[%emt 0:00:01]} 55. Rh2 {[%emt 0:00:03]} Bb1+ {[%emt 0:00:03]} (55... b6 $17 56. cxb6+ Kxb6) 56. Kc3 $1 $11 {[%emt 0:00:00]} Re1 {[%emt 0:00:02]} 57. Kd2 {[%emt 0:00:02]} Rg1 {[%emt 0:00:02]} 58. Rxh6 {[%emt 0:00:00]} Rg2+ {[%emt 0:00:01]} 59. Kc3 {[%emt 0:00:02]} Rc2+ {[%emt 0:00:01]} 60. Kd4 {[%emt 0:00:05]} Rd2+ {[%emt 0:00:01]} 61. Kc3 $1 {[%emt 0:00:01]} Re2 {[%emt 0:00:05]} (61... Rc2+ $11 62. Kb3 Rxc5 63. Rxf6 Bc2+ 64. Kb2 Bxa4 65. Rf7+ Kd6) 62. Rh8 {[%emt 0:00:02]} (62. Rh1 $1 $14 {should be considered.} Ba2 (62... Rxe3+ 63. Kd2 $16) 63. Bxa2 Rxa2 64. Kd4) 62... b5 {[%emt 0:00:02]} (62... Rxe3+ 63. Kb2 b6 64. Rh7+ (64. Kxb1 bxc5 65. Rh3 Re2 $18) 64... Kb8 65. Kxb1 $18) (62... Rc2+ $1 $11 63. Kd4 Rd2+ 64. Kc3 Rc2+) 63. cxb6+ $14 {[%emt 0:00:06]} Kb7 {[%emt 0:00:01]} ({Better is} 63... Kxb6 $14 64. Rb8+ Kc5) 64. Kd4 $18 {[%emt 0:00:02]} Rd2+ {[%emt 0:00:02]} (64... Re1 {is a better defense.}) 65. Kc5 $18 {[%emt 0:00:01]} Rc2+ {[%emt 0:00:01] [#]} 66. Kd6 $1 {[%emt 0:00:01]} (66. Bc4 Ba2 67. Rh7+ Kb8 68. Rh8+ Kb7 69. Rh7+ Kb8 70. Rh8+ Kb7 $11) 66... Rc3 {[%emt 0:00:01] [#]} 67. Rc8 $2 {[%emt 0:00:05]} ({Only move:} 67. Rh1 $1 $18 {[%cal Rh1b1]} Bc2 68. Re1) 67... Rxe3 $2 {[%emt 0:00:04][%mdl 8192]} (67... Bc2 $11 {and Black stays safe.}) 68. Rxc6 $4 {[%emt 0:00:01][%mdl 8192]} (68. Rc7+ $18 Kxb6 69. Rxc6+ Ka7 70. Rc7+ Kb6 71. Rc6+) 68... Rd3+ $19 {[%emt 0:00:01]} 69. Bd5 {[%emt 0:00:02]} Ba2 $1 {[%emt 0:00:01]} 70. Rc7+ {[%emt 0:00:03]} Kxb6 {[%emt 0:00:02]} (70... Kb8 71. Rb7+ Kc8 72. Rc7+ Kb8 73. Rb7+ Kc8 74. Rc7+ Kb8 $11) 71. Rc6+ {[%emt 0:00:01]} Kb7 {[%emt 0:00:03]} 72. Rc4+ {[%emt 0:00:01]} Kb8 $2 {[%emt 0:00:02]} (72... Rxd5+ 73. Kxd5 e3 (73... Bxc4+ $2 74. Kxe4 Be6 75. f5 $19)) 73. Rxe4 $19 {[%emt 0:00:02]} Bxd5 {[%emt 0:00:03]} 74. Re8+ $2 {[%emt 0:00:01]} (74. Re7) 74... Kb7 $19 {[%emt 0:00:01]} 75. Kc5 {[%emt 0:00:02]} f5 {[%emt 0:00:04]} 76. Re7+ {[%emt 0:00:01]} Ka6 {[%emt 0:00:01]} 77. Re5 {[%emt 0:00:05]} Be4 {[%emt 0:00:03]} 78. Re6+ {[%emt 0:00:01]} Kb7 79. Re7+ {[%emt 0:00:01]} Kc8 {[%emt 0:00:02]} 80. Kb6 {[%emt 0:00:00]} Rd5 {[%emt 0:00:02]} (80... Rxa3 81. Kxa5 Bc2 82. Kb5 $19) 81. Ra7 {[%emt 0:00:03]} Bc2 $2 {[%emt 0:00:03]} (81... Kd8 $19 {Strongly threatening ...Bf3.} 82. Rxa5 Rxa5 83. Kxa5 Kc7) 82. Rc7+ $11 {[%emt 0:00:02]} (82. Rxa5 $2 {too greedy.} Rxa5 83. Kxa5 Kc7 $19) 82... Kd8 {[%emt 0:00:02]} 83. Rxc2 {[%emt 0:00:01]} Kd7 {[%emt 0:00:03]} 84. Rc5 {[%emt 0:00:04]} Rd4 {[%emt 0:00:01]} 85. Rxf5 {[%emt 0:00:01]} Rxa4 {[%emt 0:00:01]} 86. Rd5+ {[%emt 0:00:01]} Ke6 {[%emt 0:00:04]} 87. Rxa5 {[%emt 0:00:02]} Rxf4 {[%emt 0:00:01]} 88. a4 {[%emt 0:00:04]} Kd7 {[%emt 0:00:03]} 89. Ra7+ {[%emt 0:00:02]} Kd6 {[%emt 0:00:02]} 90. a5 {[%emt 0:00:01]} Rb4+ {[%emt 0:00:01]} 91. Ka6 {[%emt 0:00:01]} Kc6 {[%emt 0:00:01]} 92. Rh7 {[%emt 0:00:01]} Rb1 {[%emt 0:00:04]} 93. Ka7 {[%emt 0:00:01]} Rb2 {[%emt 0:00:02]} 94. a6 {[%emt 0:00:01]} Rb1 {[%emt 0:00:00]} 95. Rb7 {[%emt 0:00:01]} Ra1 {[%emt 0:00:02]} 96. Rb2 {[%emt 0:00:01]} Kc7 {[%emt 0:00:03]} 97. Rc2+ {[%emt 0:00:01]} Kd7 {[%emt 0:00:01]} 98. Rc5 {[%emt 0:00:03]} (98. Kb6 $5 Rb1+ $8 99. Ka7 $11) 98... Rb1 {[%emt 0:00:01]} 99. Rc3 {[%emt 0:00:04]} Rb2 {[%emt 0:00:01]} 100. Rc4 {[%emt 0:00:01]} Rb1 {[%emt 0:00:01]} 101. Rh4 {[%emt 0:00:01]} Kc7 {[%emt 0:00:00]} 102. Rh7+ {[%emt 0:00:01]} Kc8 {[%emt 0:00:04]} 103. Rb7 {[%emt 0:00:03]} Ra1 {[%emt 0:00:04]} 104. Rb5 {[%emt 0:00:02]} Kc7 {[%emt 0:00:01]} 105. Rc5+ {[%emt 0:00:01]} Kd6 {[%emt 0:00:02]} 106. Rb5 {[%emt 0:00:04]} Kc7 {[%emt 0:00:01]} 107. Rb4 {[%emt 0:00:03]} Rc1 {[%emt 0:00:06]} 108. Rb7+ {[%emt 0:00:02]} Kc8 {[%emt 0:00:00]} 109. Rb8+ {[%emt 0:00:07]} Kc7 {[%emt 0:00:01]} 110. Rb3 {[%emt 0:00:02]} Rc2 {[%emt 0:00:01]} 111. Ka8 {[%emt 0:00:01]} Ra2 {[%emt 0:00:05]} 112. Rb7+ {[%emt 0:00:03]} Kc8 {[%emt 0:00:01]} 113. Rb6 {[%emt 0:00:02]} Kc7 {[%emt 0:00:01]} 114. Rg6 {[%emt 0:00:01]} Rb2 {[%emt 0:00:06]} 115. Ka7 {[%emt 0:00:01]} Rb1 {[%emt 0:00:00]} 116. Rg7+ {[%emt 0:00:02]} Kc8 {[%emt 0:00:01]} 117. Rg3 {[%emt 0:00:02]} Kc7 {[%emt 0:00:01]} 118. Rc3+ {[%emt 0:00:03]} Kd7 {[%emt 0:00:01]} 119. Rc4 {[%emt 0:00:01]} Rb2 {[%emt 0:00:01]} 120. Rh4 {[%emt 0:00:01]} Kc7 {[%emt 0:00:01]} 121. Rh7+ {[%emt 0:00:01]} Kc8 {[%emt 0:00:01]} 122. Rb7 {[%emt 0:00:02]} Rc2 {[%emt 0:00:06]} 123. Rb6 {[%emt 0:00:03]} Kc7 {[%emt 0:00:01]} 124. Rb4 {[%emt 0:00:01]} Rc1 {[%emt 0:00:01]} 125. Rb2 {[%emt 0:00:02]} Rc3 {[%emt 0:00:01]} 126. Ka8 {[%emt 0:00:02]} Rc1 {[%emt 0:00:01]} 127. Rb7+ {[%emt 0:00:02]} Kc8 {[%emt 0:00:01]} 128. a7 {[%emt 0:00:03]} Rc2 {[%emt 0:00:04]} 129. Rb8+ {[%emt 0:00:01]} Kc7 130. Rb7+ {[%emt 0:00:01]} Kc8 {[%emt 0:00:02]} 131. Rb8+ {[%emt 0:00:01]} Kc7 {[%emt 0:00:00]} 132. Rb7+ {[%emt 0:00:01]} Kc8 {[%emt 0:00:00]} 1/2-1/2

[Event "GCT Superbet Blitz Poland 2025"]
[Site "Warsaw"]
[Date "2025.04.29"]
[Round "5"]
[White "Vachier-Lagrave, Maxime"]
[Black "Gavrilescu, David"]
[Result "1-0"]
[ECO "B52"]
[WhiteElo "2722"]
[BlackElo "2554"]
[Annotator "RC"]
[PlyCount "67"]
[EventDate "2025.??.??"]
[EventType "blitz"]
[TimeControl "300+2"]

1. e4 {[%emt 0:00:01]} c5 {[%emt 0:00:01]} 2. Nf3 {[%emt 0:00:01]} d6 {[%emt 0:00:01]} 3. Bb5+ {[%emt 0:00:01]} Bd7 {[%emt 0:00:02]} 4. c4 {[%emt 0:00:01]} Nc6 {[%emt 0:00:10]} 5. Nc3 {[%emt 0:00:02]} g6 {[%emt 0:00:03]} 6. d4 {[%emt 0:00:03]} cxd4 {[%emt 0:00:02]} 7. Nxd4 {[%emt 0:00:01]} Bg7 {[%emt 0:00:02]} 8. Be3 {[%emt 0:00:02]} Nf6 {[%emt 0:00:01]} 9. h3 {[%emt 0:00:09]} O-O {[%emt 0:00:11]} 10. O-O {[%emt 0:00:02]} Rc8 {[%emt 0:00:31]} ({RR} 10... a6 11. Bxc6 bxc6 12. Rc1 c5 13. Nde2 Bc6 14. f3 Nd7 15. b3 Re8 16. Qd2 Rb8 17. Bh6 Bh8 18. Rb1 Nf6 19. Nf4 Qa5 20. Rfc1 Qa3 21. Nfd5 Bxd5 22. exd5 Qa5 23. Re1 Ng4 24. Na4 Bd4+ 25. Kf1 {Carlsen,M (2876)-Mamedov,R (2645) chess24.com INT 2020 1-0 (40)}) 11. Rc1 {[%emt 0:00:02]} Nxd4 $146 {[%emt 0:00:11]} ({RR} 11... a6 12. Nxc6 Bxc6 13. Bxc6 Rxc6 14. b3 e6 15. Qd3 Qa5 16. Rfd1 Nd7 17. Bd4 Nc5 18. Qe3 Rfc8 19. Bxg7 Kxg7 20. e5 dxe5 21. Qxe5+ f6 22. Qe3 Rd8 23. Rxd8 Qxd8 24. Rd1 Rd6 25. Qxc5 Rxd1+ 26. Nxd1 {Stachon,M (2113)-Skacelik,P (2185) Czech Republic 2013 1-0 (38)}) ({RR} 11... a6 12. Bxc6 Bxc6 13. Nxc6 Rxc6 14. Qd3 Qa5 15. Nd5 Nxd5 16. exd5 Rc7 17. Qb3 b5 18. cxb5 Rxc1 19. Rxc1 axb5 20. Rc6 Qe1+ 21. Kh2 Qe2 22. Rc7 Qxb2 23. Qxb2 Bxb2 24. Rxe7 Ra8 25. Rb7 Be5+ 26. f4 {Wan,J (2187)-Su,J (2038) Ledyard USA 2024 ½-½ (45)}) ({RR} 11... a6 12. Bxc6 bxc6 13. c5 d5 14. e5 Ne4 15. Nxe4 dxe4 16. e6 Be8 17. Qa4 f5 18. f4 exf3 19. Nxf3 Qd3 20. Bg5 Rc7 21. Qh4 Bf6 22. Bxf6 exf6 23. Qf4 Re7 24. Rfe1 Qb5 25. Qd6 Qb7 26. Rc3 {Rapport,J (2295)-Moncayo Romero,E (2081) Germany GER 2023 1-0 (33)}) 12. Bxd4 {[%emt 0:00:01]} a6 {[%emt 0:00:21]} 13. Bxd7 {[%emt 0:00:03]} Qxd7 {[%emt 0:00:07]} 14. Qd3 {[%emt 0:00:36]} b5 {[%emt 0:00:07]} 15. cxb5 {[%emt 0:00:01]} axb5 {[%emt 0:00:02]} 16. Nxb5 {[%emt 0:00:01]} Nxe4 {[%emt 0:00:16]} 17. Bxg7 {[%emt 0:00:02]} Kxg7 {[%emt 0:00:03]} 18. b4 {[%emt 0:00:00]} d5 {[%emt 0:00:17]} 19. a4 {[%emt 0:00:05]} e5 {[%emt 0:00:21]} 20. a5 {[%emt 0:00:16]} Rb8 {[%emt 0:00:14]} 21. Nc7 {[%emt 0:00:02]} Rxb4 {[%emt 0:00:16]} 22. a6 {[%emt 0:00:11]} Ra4 {[%emt 0:00:03]} 23. Rfd1 {[%emt 0:00:13]} Rc8 {[%emt 0:00:11]} 24. Qb3 {[%emt 0:00:37]} d4 {[%emt 0:00:38]} 25. Ne6+ {[%emt 0:01:08]} fxe6 {[%emt 0:00:32]} 26. Rxc8 {[%emt 0:00:01]} Rxa6 {[%emt 0:00:03]} 27. Qb8 {[%emt 0:00:06]} Rc6 {[%emt 0:00:59]} 28. Qxe5+ {[%emt 0:00:13]} Nf6 {[%emt 0:00:01]} 29. Rxc6 {[%emt 0:00:02]} Qxc6 {[%emt 0:00:01]} 30. Qxd4 {[%emt 0:00:02]} Kf7 {[%emt 0:00:03]} 31. Qa7+ {[%emt 0:00:02]} Ke8 {[%emt 0:00:03]} 32. Qg7 {[%emt 0:00:07]} e5 {[%emt 0:00:06]} 33. Ra1 {[%emt 0:00:07]} e4 {[%emt 0:00:04]} 34. Ra8+ {[%emt 0:00:02]} 1-0